[Event "FRA-ch Teams Top 16-B 2022"]
[Site "Chartres"]
[Date "2022.06.14"]
[Round "6.26"]
[White "Nihal Sarin"]
[Black "Neiksans, Arturs"]
[Result "1/2-1/2"]
[ECO "D02"]
[WhiteElo "2646"]
[BlackElo "2579"]
[Annotator "RC"]
[PlyCount "108"]
[EventDate "2022.06.09"]
[EventType "team-tourn"]
[EventCountry "FRA"]
[SourceTitle "playchess.com"]
[Source "ChessBase"]
[SourceQuality "1"]
[TimeControl "40/5400+30:1800+30"]

1. d4 {[%emt 0:00:38]} d5 {[%emt 0:00:24]} 2. Nf3 {[%emt 0:00:24]} e6 {[%emt 0:00:34]} 3. Bf4 {[%emt 0:00:24]} c5 {[%emt 0:04:35]} 4. c3 {[%emt 0:06:39]} Bd6 {[%emt 0:08:02]} 5. Bg3 {[%emt 0:05:38]} Nf6 {[%emt 0:02:23]} 6. e3 {[%emt 0:00:20]} O-O {[%emt 0:02:58]} 7. Nbd2 {[%emt 0:00:20]} Qc7 {[%emt 0:00:17]} 8. dxc5 {[%emt 0:02:50]} Qxc5 {[%emt 0:04:38]} 9. Bd3 {[%emt 0:00:05]} Nbd7 {[%emt 0:02:59]} 10. e4 {[%emt 0:00:27]} dxe4 {[%emt 0:08:18]} 11. Nxe4 {[%emt 0:00:24]} Nxe4 {[%emt 0:00:16]} 12. Bxe4 {[%emt 0:00:05]} Bxg3 {[%emt 0:06:19]} 13. hxg3 {[%emt 0:00:08]} Nf6 {[%emt 0:02:36]} 14. Qe2 {[%emt 0:02:30]} Nxe4 {[%emt 0:11:05]} 15. Qxe4 {[%emt 0:00:05]} Qf5 {[%emt 0:00:03]} 16. Qxf5 {[%emt 0:02:25]} exf5 {[%emt 0:00:10]} 17. Nd4 {[%emt 0:00:48]} Bd7 {[%emt 0:05:14]} 18. f3 {[%emt 0:07:54]} g6 {[%emt 0:02:38]} 19. Kf2 {[%emt 0:11:56]} Kg7 {[%emt 0:02:40]} 20. Rhd1 {[%emt 0:03:20]} Rac8 {[%emt 0:06:30]} 21. Rd2 {[%emt 0:08:15]} h5 {[%emt 0:01:25]} 22. Rad1 {[%emt 0:07:31]} Rfe8 {[%emt 0:06:22]} 23. Rd3 {[%emt 0:05:22]} Re5 {[%emt 0:03:18]} 24. R1d2 {[%emt 0:02:41]} Be8 {[%emt 0:00:50]} 25. Nc2 {[%emt 0:03:11]} Kf8 {[%emt 0:01:35]} 26. Ne3 {[%emt 0:01:09]} Rec5 {[%emt 0:00:29]} 27. Rd5 {[%emt 0:01:26]} Rxd5 {[%emt 0:04:57]} 28. Rxd5 {[%emt 0:00:30]} Ke7 {[%emt 0:00:08]} 29. c4 {[%emt 0:06:18]} Bc6 {[%emt 0:01:29]} 30. Rd4 {[%emt 0:07:20]} Ke6 {[%emt 0:02:06]} 31. b4 {[%emt 0:01:44]} Ke5 {[%emt 0:01:37]} 32. Rd2 {[%emt 0:04:40]} b6 {[%emt 0:03:36]} 33. b5 {[%emt 0:01:13]} Be8 {[%emt 0:00:11]} 34. a4 {[%emt 0:00:56]} f6 {[%emt 0:03:21]} 35. f4+ {[%emt 0:01:59]} Ke6 {[%emt 0:00:04]} 36. Ke2 {[%emt 0:03:05]} Bf7 {[%emt 0:00:20]} 37. Rd4 {[%emt 0:02:14]} Ke7 {[%emt 0:02:26]} 38. Kd2 {[%emt 0:00:52]} a6 {[%emt 0:01:00]} 39. bxa6 {[%emt 0:01:15]} Ra8 {[%emt 0:00:03]} 40. Kc3 {[%emt 0:00:21]} Rxa6 {[%emt 0:00:37]} 41. Kb4 {[%emt 0:30:05]} Be8 {[%emt 0:02:46]} 42. Nd5+ {[%emt 0:00:00]} Kf7 {[%emt 0:00:07]} 43. Nc3 {[%emt 0:00:00]} Bc6 {[%emt 0:05:11]} 44. Rd2 {[%emt 0:00:00]} g5 {[%emt 0:03:18]} 45. Ra2 {[%emt 0:00:00]} h4 {[%emt 0:04:53]} 46. gxh4 {[%emt 0:00:00]} gxh4 {[%emt 0:00:20]} 47. Nd5 {[%emt 0:00:00]} Bxd5 {[%emt 0:02:30]} 48. cxd5 {[%emt 0:00:00]} Ra5 {[%emt 0:00:02]} 49. Rd2 {[%emt 0:00:00]} Ke7 {[%emt 0:00:43]} 50. Re2+ {[%emt 0:00:00]} Kd7 {[%emt 0:02:16]} 51. Re6 {[%emt 0:00:00]} Rxd5 {[%emt 0:01:15]} 52. Rxb6 {[%emt 0:00:00]} Rd4+ {[%emt 0:03:41]} 53. Kb5 {[%emt 0:00:00]} Rxf4 {[%emt 0:00:04]} 54. Rxf6 {[%emt 0:00:00]} Rg4 {[%emt 0:11:51]} 1/2-1/2

[Event "FRA-ch Teams Top 16-B 2022"]
[Site "Chartres"]
[Date "2022.06.14"]
[Round "6.27"]
[White "Brochet, Philippe"]
[Black "Mendonca, Leon Luke"]
[Result "1/2-1/2"]
[ECO "B11"]
[WhiteElo "2390"]
[BlackElo "2551"]
[Annotator "RC"]
[PlyCount "69"]
[EventDate "2022.06.09"]
[EventType "team-tourn"]
[EventCountry "FRA"]
[SourceTitle "playchess.com"]
[Source "ChessBase"]
[SourceQuality "1"]
[TimeControl "40/5400+30:1800+30"]

1. e4 {[%emt 0:10:15]} c6 {[%emt 0:00:20]} 2. Nc3 {[%emt 0:03:00]} d5 {[%emt 0:00:26]} 3. Nf3 {[%emt 0:00:05]} Bg4 {[%emt 0:02:10]} 4. h3 {[%emt 0:00:13]} Bxf3 {[%emt 0:00:05]} 5. Qxf3 {[%emt 0:00:06]} e6 {[%emt 0:01:00]} 6. g3 {[%emt 0:00:16]} Nf6 {[%emt 0:04:58]} 7. Bg2 {[%emt 0:00:51]} Bb4 {[%emt 0:05:39]} 8. O-O {[%emt 0:01:27]} O-O {[%emt 0:08:56]} 9. d3 {[%emt 0:02:49]} Bxc3 {[%emt 0:03:20]} 10. bxc3 {[%emt 0:00:05]} Qa5 {[%emt 0:01:43]} 11. exd5 {[%emt 0:05:29]} cxd5 {[%emt 0:12:21]} 12. c4 {[%emt 0:03:51]} dxc4 {[%emt 0:07:34]} 13. Qxb7 {[%emt 0:09:32]} Nbd7 {[%emt 0:02:23]} 14. Be3 {[%emt 0:04:10]} cxd3 {[%emt 0:18:43]} 15. cxd3 {[%emt 0:00:36]} Nb6 {[%emt 0:00:41]} 16. Bxb6 {[%emt 0:06:35]} axb6 {[%emt 0:00:34]} 17. Rfb1 {[%emt 0:02:59]} Rab8 {[%emt 0:01:16]} 18. Qe7 {[%emt 0:01:01]} Nd5 {[%emt 0:04:27]} 19. Bxd5 {[%emt 0:01:12]} Qxd5 {[%emt 0:00:18]} 20. Rb3 {[%emt 0:00:38]} Rfc8 {[%emt 0:03:36]} 21. Rab1 {[%emt 0:08:56]} h6 {[%emt 0:01:42]} 22. Qb4 {[%emt 0:17:31]} Ra8 {[%emt 0:13:37]} 23. a3 {[%emt 0:01:31]} Ra6 {[%emt 0:04:52]} 24. Rc3 {[%emt 0:01:39]} Rxc3 {[%emt 0:00:31]} 25. Qxc3 {[%emt 0:00:03]} Qa8 {[%emt 0:01:03]} 26. Rb3 {[%emt 0:01:29]} Kh7 {[%emt 0:00:36]} 27. Qb4 {[%emt 0:05:29]} g6 {[%emt 0:00:35]} 28. Rc3 {[%emt 0:01:17]} Qb7 {[%emt 0:00:32]} 29. Qf4 {[%emt 0:02:11]} Ra7 {[%emt 0:00:28]} 30. Qd4 {[%emt 0:01:46]} Ra5 {[%emt 0:00:31]} 31. Rb3 {[%emt 0:04:33]} Qf3 {[%emt 0:00:29]} 32. Rxb6 {[%emt 0:00:38]} Rd5 {[%emt 0:00:20]} 33. Qe4 {[%emt 0:00:45]} Qxd3 {[%emt 0:00:41]} 34. Qxd3 {[%emt 0:01:15]} Rxd3 {[%emt 0:00:02]} 35. a4 {[%emt 0:00:37]} 1/2-1/2

[Event "FRA-ch Teams Top 16-B 2022"]
[Site "Chartres"]
[Date "2022.06.14"]
[Round "6.28"]
[White "Terrieux, Kevin"]
[Black "Chabanon, Jean-Luc"]
[Result "1/2-1/2"]
[ECO "A11"]
[WhiteElo "2448"]
[BlackElo "2432"]
[Annotator "RC"]
[PlyCount "64"]
[EventDate "2022.06.09"]
[EventType "team-tourn"]
[EventCountry "FRA"]
[SourceTitle "playchess.com"]
[Source "ChessBase"]
[SourceQuality "1"]
[TimeControl "40/5400+30:1800+30"]

1. Nf3 {[%emt 1:31:00]} Nf6 {[%emt 0:10:50]} 2. g3 {[%emt 0:00:00]} d5 {[%emt 0:01:28]} 3. Bg2 {[%emt 0:00:00]} c6 {[%emt 0:00:40]} 4. O-O {[%emt 0:00:00]} Bf5 {[%emt 0:00:44]} 5. d3 {[%emt 0:00:00]} e6 {[%emt 0:00:20]} 6. c4 {[%emt 0:00:00]} Be7 {[%emt 0:03:58]} 7. cxd5 {[%emt 0:00:00]} exd5 {[%emt 0:00:32]} 8. Nc3 {[%emt 0:00:00]} O-O {[%emt 0:00:42]} 9. Nd4 {[%emt 0:00:00]} Bg6 {[%emt 0:00:52]} 10. e4 {[%emt 0:00:00]} dxe4 {[%emt 0:10:48]} 11. dxe4 {[%emt 0:00:00]} Na6 {[%emt 1:05:06]} 12. h3 {[%emt 0:00:00]} Nc5 {[%emt 0:00:30]} 13. Re1 {[%emt 0:00:00]} Qb6 {[%emt 0:00:00]} 14. Nf5 {[%emt 0:00:00]} Bxf5 {[%emt 0:00:00]} 15. exf5 {[%emt 0:00:00]} Rfe8 {[%emt 0:00:00]} 16. Qc2 {[%emt 0:00:00]} Na6 {[%emt 0:00:00]} 17. a3 {[%emt 0:00:00]} Bc5 {[%emt 0:00:00]} 18. Bg5 {[%emt 0:00:00]} Bd4 {[%emt 0:00:00]} 19. Na4 {[%emt 0:00:00]} Qc7 {[%emt 0:00:00]} 20. Bf4 {[%emt 0:00:00]} Be5 {[%emt 0:00:00]} 21. Bxe5 {[%emt 0:00:00]} Rxe5 {[%emt 0:00:00]} 22. b4 {[%emt 0:00:00]} Rae8 {[%emt 0:00:00]} 23. Rxe5 {[%emt 0:00:00]} Qxe5 {[%emt 0:00:00]} 24. Rd1 {[%emt 0:00:00]} h6 {[%emt 0:00:00]} 25. Qd3 {[%emt 0:00:00]} Nb8 {[%emt 0:00:00]} 26. Nc3 {[%emt 0:00:00]} Re7 {[%emt 0:00:00]} 27. Qd8+ {[%emt 0:01:05]} Re8 {[%emt 0:00:00]} 28. Qd3 {[%emt 0:00:13]} Re7 {[%emt 0:00:00]} 29. Qd8+ {[%emt 0:00:10]} Kh7 {[%emt 0:00:33]} 30. Qd4 {[%emt 0:00:56]} Qxd4 {[%emt 0:00:43]} 31. Rxd4 {[%emt 0:00:02]} Rd7 {[%emt 0:00:41]} 32. Rxd7 {[%emt 0:00:48]} Nfxd7 {[%emt 0:01:14]} 1/2-1/2

[Event "FRA-ch Teams Top 16-B 2022"]
[Site "Chartres"]
[Date "2022.06.14"]
[Round "6.29"]
[White "Housieaux, David"]
[Black "Rakotomaharo, Fy Antenaina"]
[Result "0-1"]
[ECO "D29"]
[WhiteElo "2412"]
[BlackElo "2467"]
[Annotator "RC"]
[PlyCount "62"]
[EventDate "2022.06.09"]
[EventType "team-tourn"]
[EventCountry "FRA"]
[SourceTitle "playchess.com"]
[Source "ChessBase"]
[SourceQuality "1"]
[TimeControl "40/5400+30:1800+30"]

1. Nf3 {[%emt 0:00:15]} Nf6 {[%emt 0:00:16]} 2. c4 {[%emt 0:01:13]} e6 {[%emt 0:00:06]} 3. Nc3 {[%emt 0:03:26]} d5 {[%emt 0:00:06]} 4. e3 {[%emt 0:00:20]} dxc4 {[%emt 0:02:00]} 5. Bxc4 {[%emt 0:00:41]} a6 {[%emt 0:00:04]} 6. O-O {[%emt 0:05:33]} b5 {[%emt 0:00:32]} 7. Bb3 {[%emt 0:00:05]} Bb7 {[%emt 0:00:17]} 8. Qe2 {[%emt 0:00:05]} Nbd7 {[%emt 0:06:07]} 9. Rd1 {[%emt 0:00:47]} c5 {[%emt 0:03:00]} 10. d4 {[%emt 0:04:59]} Qc7 {[%emt 0:08:52]} 11. d5 {[%emt 0:09:10]} c4 {[%emt 0:11:02]} 12. dxe6 {[%emt 0:01:11]} fxe6 {[%emt 0:00:06]} 13. Bc2 {[%emt 0:00:04]} Bc5 {[%emt 0:01:15]} 14. a4 {[%emt 0:07:15]} b4 {[%emt 0:10:54]} 15. Qxc4 {[%emt 0:02:56]} Bxf3 {[%emt 0:00:18]} 16. gxf3 {[%emt 0:00:51]} bxc3 {[%emt 0:00:15]} 17. b4 {[%emt 0:00:50]} Bd6 {[%emt 0:11:59]} 18. Qxe6+ {[%emt 0:00:09]} Be7 {[%emt 0:00:02]} 19. Bb3 {[%emt 0:06:33]} Kd8 {[%emt 0:01:46]} 20. Rd4 {[%emt 0:04:26]} Rb8 {[%emt 0:06:19]} 21. Ba3 {[%emt 0:12:30]} a5 {[%emt 0:01:35]} 22. Rad1 {[%emt 0:05:59]} Bxb4 {[%emt 0:06:05]} 23. Bc1 {[%emt 0:06:24]} Bc5 {[%emt 0:07:21]} 24. R4d3 {[%emt 0:02:33]} Rb6 {[%emt 0:00:31]} 25. Qc4 {[%emt 0:01:33]} Bd6 {[%emt 0:02:25]} 26. Qf7 {[%emt 0:06:03]} Nc5 {[%emt 0:05:39]} 27. Rxc3 {[%emt 0:16:38]} Rxb3 {[%emt 0:01:03]} 28. Rxb3 {[%emt 0:00:25]} Qxf7 {[%emt 0:00:12]} 29. Rb8+ {[%emt 0:00:03]} Kc7 {[%emt 0:00:19]} 30. Rxh8 {[%emt 0:00:04]} Qg6+ {[%emt 0:00:36]} 31. Kf1 {[%emt 0:00:20]} Qc2 {[%emt 0:00:07]} 0-1

[Event "FRA-ch Teams Top 16-B 2022"]
[Site "Chartres"]
[Date "2022.06.14"]
[Round "6.30"]
[White "Riff, Jean-Noel"]
[Black "Marcelin, Cyril"]
[Result "1/2-1/2"]
[ECO "B15"]
[WhiteElo "2444"]
[BlackElo "2440"]
[Annotator "RC"]
[PlyCount "27"]
[EventDate "2022.06.09"]
[EventType "team-tourn"]
[EventCountry "FRA"]
[SourceTitle "playchess.com"]
[Source "ChessBase"]
[SourceQuality "1"]
[TimeControl "40/5400+30:1800+30"]

1. e4 {[%emt 0:00:03]} c6 {[%emt 0:00:47]} 2. d4 {[%emt 0:00:10]} d5 {[%emt 0:00:14]} 3. Nc3 {[%emt 0:00:07]} dxe4 {[%emt 0:00:23]} 4. Nxe4 {[%emt 0:00:06]} Nf6 {[%emt 0:00:05]} 5. Nxf6+ {[%emt 0:00:08]} exf6 {[%emt 0:00:06]} 6. c3 {[%emt 0:00:27]} Bd6 {[%emt 0:01:02]} 7. Bd3 {[%emt 0:00:05]} O-O {[%emt 0:01:48]} 8. Qc2 {[%emt 0:01:04]} Re8+ {[%emt 0:00:59]} 9. Ne2 {[%emt 0:00:06]} h5 {[%emt 0:01:36]} 10. O-O {[%emt 0:00:37]} h4 {[%emt 0:06:07]} 11. h3 {[%emt 0:01:42]} Nd7 {[%emt 0:05:39]} 12. c4 {[%emt 0:10:32]} Nf8 {[%emt 0:00:37]} 13. Bd2 {[%emt 0:01:50]} f5 {[%emt 0:24:03]} 14. Rfe1 {[%emt 0:15:54]} 1/2-1/2

[Event "FRA-ch Teams Top 16-B 2022"]
[Site "Chartres"]
[Date "2022.06.14"]
[Round "6.31"]
[White "Dionisi, Thomas"]
[Black "Sokolov, Andrei"]
[Result "1-0"]
[ECO "B81"]
[WhiteElo "2408"]
[BlackElo "2516"]
[Annotator "RC"]
[PlyCount "143"]
[EventDate "2022.06.09"]
[EventType "team-tourn"]
[EventCountry "FRA"]
[SourceTitle "playchess.com"]
[Source "ChessBase"]
[SourceQuality "1"]
[TimeControl "40/5400+30:1800+30"]

1. e4 {[%emt 0:00:30]} c5 {[%emt 0:00:08]} 2. Nf3 {[%emt 0:00:05]} d6 {[%emt 0:00:37]} 3. d4 {[%emt 0:00:04]} cxd4 {[%emt 0:00:09]} 4. Nxd4 {[%emt 0:00:03]} Nf6 {[%emt 0:00:10]} 5. Nc3 {[%emt 0:00:02]} e6 {[%emt 0:00:16]} 6. g4 {[%emt 0:00:16]} h6 {[%emt 0:01:04]} 7. Be3 {[%emt 0:00:20]} a6 {[%emt 0:04:04]} 8. Be2 {[%emt 0:12:46]} Nc6 {[%emt 0:14:18]} 9. h4 {[%emt 0:00:41]} d5 {[%emt 0:26:37]} 10. exd5 {[%emt 0:01:12]} Nxd5 {[%emt 0:02:16]} 11. Nxd5 {[%emt 0:00:13]} Qxd5 {[%emt 0:02:45]} 12. Bf3 {[%emt 0:00:05]} Qa5+ {[%emt 0:02:36]} 13. c3 {[%emt 0:03:25]} Ne5 {[%emt 0:02:06]} 14. Bg2 {[%emt 0:17:45]} Nc4 {[%emt 0:05:19]} 15. Qb3 {[%emt 0:06:18]} Nxe3 {[%emt 0:08:08]} 16. fxe3 {[%emt 0:01:12]} Bd6 {[%emt 0:06:18]} 17. O-O-O {[%emt 0:01:25]} O-O {[%emt 0:01:19]} 18. g5 {[%emt 0:09:32]} hxg5 {[%emt 0:03:24]} 19. hxg5 {[%emt 0:06:07]} Qxg5 {[%emt 0:01:14]} 20. Qc2 {[%emt 0:02:22]} g6 {[%emt 0:03:45]} 21. Qe4 {[%emt 0:09:00]} f5 {[%emt 0:05:29]} 22. Qf3 {[%emt 0:02:32]} Be5 {[%emt 0:04:27]} 23. Rdg1 {[%emt 0:11:11]} Bg7 {[%emt 0:00:45]} 24. Qh3 {[%emt 0:02:06]} Qf6 {[%emt 0:01:08]} 25. Bf3 {[%emt 0:02:04]} Bd7 {[%emt 0:02:37]} 26. Qh7+ {[%emt 0:03:05]} Kf7 {[%emt 0:00:06]} 27. Rxg6 {[%emt 0:00:12]} Qxg6 {[%emt 0:00:55]} 28. Bh5 {[%emt 0:00:05]} Qxh5 {[%emt 0:00:09]} 29. Qxh5+ {[%emt 0:00:09]} Ke7 {[%emt 0:00:22]} 30. Qg6 {[%emt 0:04:59]} Bxd4 {[%emt 0:00:39]} 31. Rh7+ {[%emt 0:00:47]} Kd6 {[%emt 0:00:25]} 32. exd4 {[%emt 0:00:21]} Rad8 {[%emt 0:01:42]} 33. Qg3+ {[%emt 0:01:28]} f4 {[%emt 0:00:54]} 34. Qg5 {[%emt 0:00:17]} b6 {[%emt 0:00:22]} 35. Qe7+ {[%emt 0:03:32]} Kc7 {[%emt 0:00:44]} 36. Rf7 {[%emt 0:00:28]} Rxf7 {[%emt 0:00:33]} 37. Qxf7 {[%emt 0:00:02]} Kc8 {[%emt 0:00:32]} 38. Qxf4 {[%emt 0:00:07]} Bc6 {[%emt 0:00:23]} 39. Qf7 {[%emt 0:00:36]} Bd7 {[%emt 0:00:15]} 40. Qg7 {[%emt 0:01:57]} a5 {[%emt 0:00:32]} 41. Kd2 {[%emt 0:30:51]} a4 {[%emt 0:04:39]} 42. c4 {[%emt 0:00:00]} b5 {[%emt 0:02:52]} 43. c5 {[%emt 0:00:00]} Bc6 {[%emt 0:04:00]} 44. Kc3 {[%emt 0:00:00]} Bd5 {[%emt 0:02:13]} 45. Kb4 {[%emt 0:00:00]} Bc6 {[%emt 0:00:07]} 46. Kc3 {[%emt 0:00:00]} Bd5 {[%emt 0:00:58]} 47. Qe7 {[%emt 0:00:00]} Rd7 {[%emt 0:03:54]} 48. Qe8+ {[%emt 0:00:00]} Kc7 {[%emt 0:00:59]} 49. b3 {[%emt 0:00:00]} axb3 {[%emt 0:09:18]} 50. axb3 {[%emt 0:00:00]} Bc6 {[%emt 0:00:54]} 51. Qxe6 {[%emt 0:00:00]} Kb7 {[%emt 0:00:09]} 52. Qf6 {[%emt 0:00:00]} Rd5 {[%emt 0:00:14]} 53. Qf4 {[%emt 0:00:00]} Rd7 {[%emt 0:00:58]} 54. Qf5 {[%emt 0:01:03]} Rd5 {[%emt 0:00:16]} 55. Qf1 {[%emt 0:00:08]} Rd8 {[%emt 0:01:13]} 56. Qg1 {[%emt 0:01:02]} Kc7 {[%emt 0:00:34]} 57. Kd3 {[%emt 0:01:45]} Kb7 {[%emt 0:00:17]} 58. Qg7+ {[%emt 0:00:24]} Rd7 {[%emt 0:00:19]} 59. Qf8 {[%emt 0:00:39]} Rd5 {[%emt 0:00:55]} 60. Ke3 {[%emt 0:00:19]} Rd7 {[%emt 0:00:37]} 61. Qf6 {[%emt 0:00:37]} Rd5 {[%emt 0:01:01]} 62. Qe6 {[%emt 0:01:00]} Kc7 {[%emt 0:00:33]} 63. Kd3 {[%emt 0:00:21]} Kb7 {[%emt 0:03:24]} 64. Qe1 {[%emt 0:00:09]} Kc8 {[%emt 0:00:31]} 65. Qa5 {[%emt 0:00:39]} Rg5 {[%emt 0:01:15]} 66. Qa6+ {[%emt 0:01:32]} Kd7 {[%emt 0:00:41]} 67. Qa7+ {[%emt 0:00:04]} Kc8 {[%emt 0:00:12]} 68. Ke3 {[%emt 0:00:37]} Rg3+ {[%emt 0:01:08]} 69. Kf4 {[%emt 0:00:37]} Rxb3 {[%emt 0:00:16]} 70. Ke5 {[%emt 0:01:55]} Rh3 {[%emt 0:00:49]} 71. Qg7 {[%emt 0:00:30]} Kb8 {[%emt 0:00:37]} 72. Kd6 {[%emt 0:00:13]} 1-0

[Event "FRA-ch Teams Top 16-B 2022"]
[Site "Chartres"]
[Date "2022.06.14"]
[Round "6.32"]
[White "Navrotescu, Andreea"]
[Black "Monpeurt, Cyrielle"]
[Result "1-0"]
[ECO "A22"]
[WhiteElo "2318"]
[BlackElo "2172"]
[Annotator "RC"]
[PlyCount "175"]
[EventDate "2022.06.09"]
[EventType "team-tourn"]
[EventCountry "FRA"]
[SourceTitle "playchess.com"]
[Source "ChessBase"]
[SourceQuality "1"]
[TimeControl "40/5400+30:1800+30"]

1. c4 {[%emt 0:00:03]} c6 {[%emt 0:00:07]} 2. e4 {[%emt 0:00:05]} e5 {[%emt 0:00:08]} 3. Nf3 {[%emt 0:00:11]} Nf6 {[%emt 0:00:18]} 4. Nc3 {[%emt 0:00:23]} Bb4 {[%emt 0:00:48]} 5. Nxe5 {[%emt 0:00:07]} O-O {[%emt 0:00:22]} 6. Be2 {[%emt 0:00:31]} Re8 {[%emt 0:00:21]} 7. Nd3 {[%emt 0:00:13]} Bxc3 {[%emt 0:00:13]} 8. dxc3 {[%emt 0:00:27]} Nxe4 {[%emt 0:00:08]} 9. O-O {[%emt 0:00:26]} d5 {[%emt 0:00:07]} 10. Nf4 {[%emt 0:03:22]} dxc4 {[%emt 0:10:55]} 11. Bxc4 {[%emt 0:04:23]} Qxd1 {[%emt 0:03:11]} 12. Rxd1 {[%emt 0:00:02]} Bf5 {[%emt 0:00:15]} 13. f3 {[%emt 0:03:53]} Nf6 {[%emt 0:02:51]} 14. g4 {[%emt 0:00:52]} Be6 {[%emt 0:16:24]} 15. Nxe6 {[%emt 0:06:42]} fxe6 {[%emt 0:00:19]} 16. Rd6 {[%emt 0:01:14]} Kf7 {[%emt 0:08:46]} 17. a4 {[%emt 0:08:09]} Nbd7 {[%emt 0:06:55]} 18. Bf4 {[%emt 0:10:20]} Nb6 {[%emt 0:02:21]} 19. Bb3 {[%emt 0:00:11]} Nbd5 {[%emt 0:08:16]} 20. Bg3 {[%emt 0:00:44]} Rad8 {[%emt 0:00:20]} 21. a5 {[%emt 0:05:35]} Rxd6 {[%emt 0:02:47]} 22. Bxd6 {[%emt 0:00:05]} a6 {[%emt 0:00:02]} 23. c4 {[%emt 0:07:50]} Ne7 {[%emt 0:00:34]} 24. g5 {[%emt 0:11:19]} Nd7 {[%emt 0:04:46]} 25. Rd1 {[%emt 0:00:35]} Nf5 {[%emt 0:01:32]} 26. Bf4 {[%emt 0:01:35]} Re7 {[%emt 0:02:54]} 27. Bc2 {[%emt 0:01:52]} g6 {[%emt 0:01:02]} 28. b4 {[%emt 0:08:25]} e5 {[%emt 0:03:50]} 29. Bd2 {[%emt 0:00:09]} Nf8 {[%emt 0:00:07]} 30. Kf2 {[%emt 0:04:35]} Ne6 {[%emt 0:01:15]} 31. Bc1 {[%emt 0:02:02]} Ned4 {[%emt 0:02:12]} 32. Be4 {[%emt 0:00:42]} Ke6 {[%emt 0:01:40]} 33. Bb2 {[%emt 0:02:42]} Rd7 {[%emt 0:02:03]} 34. Bb1 {[%emt 0:00:47]} Rf7 {[%emt 0:11:56]} 35. c5 {[%emt 0:00:43]} Rf8 {[%emt 0:04:56]} 36. Re1 {[%emt 0:01:21]} Nh4 {[%emt 0:01:53]} 37. Bxd4 {[%emt 0:02:15]} Nxf3 {[%emt 0:00:13]} 38. Ba2+ {[%emt 0:00:19]} Kd7 {[%emt 0:00:34]} 39. Be3 {[%emt 0:00:46]} Nxe1+ {[%emt 0:00:29]} 40. Kxe1 {[%emt 0:00:01]} Rf3 {[%emt 0:00:33]} 41. Bf2 {[%emt 0:39:46]} Rf4 {[%emt 0:03:56]} 42. Bg8 {[%emt 0:00:00]} Ke7 {[%emt 0:01:14]} 43. Ke2 {[%emt 0:00:00]} Rxb4 {[%emt 0:01:43]} 44. Kd3 {[%emt 0:00:00]} Rf4 {[%emt 0:14:59]} 45. Be1 {[%emt 0:00:00]} Rg4 {[%emt 0:01:55]} 46. Bg3 {[%emt 0:00:00]} Rd4+ {[%emt 0:04:41]} 47. Ke3 {[%emt 0:00:00]} Ra4 {[%emt 0:00:18]} 48. Bxe5 {[%emt 0:00:00]} Kf8 {[%emt 0:00:29]} 49. Be6 {[%emt 0:00:00]} Rxa5 {[%emt 0:00:06]} 50. Bc7 {[%emt 0:01:31]} Rb5 {[%emt 0:01:37]} 51. Bc4 {[%emt 0:01:27]} Rb1 {[%emt 0:01:01]} 52. Bd6+ {[%emt 0:01:40]} Kg7 {[%emt 0:00:50]} 53. Bd3 {[%emt 0:01:24]} Rb4 {[%emt 0:00:30]} 54. Bc7 {[%emt 0:01:17]} Kf7 {[%emt 0:00:58]} 55. Be4 {[%emt 0:03:10]} Ke6 {[%emt 0:00:22]} 56. h4 {[%emt 0:00:09]} Rb3+ {[%emt 0:01:08]} 57. Kf4 {[%emt 0:00:14]} Rh3 {[%emt 0:01:54]} 58. Kg4 {[%emt 0:00:05]} Re3 {[%emt 0:00:21]} 59. Bb1 {[%emt 0:00:46]} Kf7 {[%emt 0:01:29]} 60. h5 {[%emt 0:01:00]} gxh5+ {[%emt 0:00:06]} 61. Kxh5 {[%emt 0:00:02]} Rh3+ {[%emt 0:00:25]} 62. Kg4 {[%emt 0:00:04]} Rh1 {[%emt 0:00:15]} 63. Be4 {[%emt 0:00:26]} Rg1+ {[%emt 0:00:20]} 64. Kf4 {[%emt 0:00:49]} Kg8 {[%emt 0:00:27]} 65. Kf5 {[%emt 0:01:05]} Kf7 {[%emt 0:01:38]} 66. Kf4 {[%emt 0:00:31]} Kg8 {[%emt 0:00:10]} 67. Bf5 {[%emt 0:00:54]} Re1 {[%emt 0:00:42]} 68. Bb6 {[%emt 0:00:27]} Kg7 {[%emt 0:00:59]} 69. Bc8 {[%emt 0:00:07]} Rf1+ {[%emt 0:00:53]} 70. Ke5 {[%emt 0:00:06]} Rg1 {[%emt 0:00:35]} 71. Bd8 {[%emt 0:00:19]} Rb1 {[%emt 0:00:12]} 72. Bb6 {[%emt 0:01:42]} Rg1 {[%emt 0:00:12]} 73. Bxb7 {[%emt 0:00:41]} Rxg5+ {[%emt 0:00:05]} 74. Kd6 {[%emt 0:00:03]} Rg6+ {[%emt 0:00:14]} 75. Kc7 {[%emt 0:00:32]} h5 {[%emt 0:00:36]} 76. Bxc6 {[%emt 0:00:02]} h4 {[%emt 0:01:13]} 77. Bd5 {[%emt 0:01:28]} Rg5 {[%emt 0:00:39]} 78. Be6 {[%emt 0:00:45]} Rg3 {[%emt 0:00:56]} 79. c6 {[%emt 0:00:31]} h3 {[%emt 0:00:07]} 80. Bd4+ {[%emt 0:00:49]} Kg6 {[%emt 0:00:37]} 81. Be5 {[%emt 0:00:29]} Re3 {[%emt 0:00:25]} 82. Kd6 {[%emt 0:00:13]} Rd3+ {[%emt 0:00:23]} 83. Kc5 {[%emt 0:00:22]} Re3 {[%emt 0:01:10]} 84. Kd5 {[%emt 0:00:01]} Re1 {[%emt 0:00:46]} 85. Bxh3 {[%emt 0:00:23]} Rd1+ {[%emt 0:00:13]} 86. Kc5 {[%emt 0:00:23]} Rc1+ {[%emt 0:00:35]} 87. Kb6 {[%emt 0:00:05]} a5 {[%emt 0:00:30]} 88. c7 {[%emt 0:00:05]} 1-0